{"text_format":"3","workbook":"xlsx","n_sheets":1,"sheets":["岗位表"],"not_rendered":{"defined_names":3},"read":"whole","date_system":"1900"}

{"sheet":"岗位表","index":0,"n_rows":22,"n_cols":13,"rows_kept":22,"merged":[[0,0,0,9],[1,0,2,0],[1,1,1,4],[1,5,1,8],[1,9,2,9],[3,0,11,0],[3,1,11,1],[3,2,11,2],[3,6,11,6],[3,7,11,7],[3,8,11,8],[12,0,14,0],[12,1,14,1],[12,2,14,2],[12,6,14,6],[12,7,14,7],[12,8,14,8],[15,0,20,0],[15,1,20,1],[15,2,20,2],[15,6,20,6],[15,7,20,7],[15,8,20,8]]}
["成都经开区（龙泉驿区）2020“蓉漂人才荟”赴西南大学公开考核招聘教育人才岗位表"]
["招聘单位","招聘岗位",{"$nulls":3},"招聘条件",{"$nulls":3},"备注"]
[null,"岗位类别","招聘人数","岗位、数量","岗位主要职责","专业要求","学历学位要求","年龄要求","其他要求条件要求"]
["龙泉驿区教育局所属普通高级中学校","专业技术",12,{"$f":"CONCATENATE(\"高中\",L4,\"(\",M4,\")\")","v":"高中语文(1)"},{"$f":"CONCATENATE(\"高中\",L4,\"教学\")","v":"高中语文教学"},"汉语言、汉语言文学、对外汉语、教育学（语文方向）、汉语言及应用语言学、汉语言文字学、中国古典文献学、中国古代文学、中国现当代文学、文学与文学教育、学科教学（语文）","2020年、2021年毕业的普通高等教育硕士研究生及以上学历学位的优秀大学毕业生或2020年、2021年毕业的教育部直属师范大学公费师范生，并取得相应学位。","研究生1985年1月1日及以后出生；本科生1990年1月1日及以后出生。","2021年7月31日前取得报考岗位相应的教师资格证。","成都经济技术开发区实验中学校",null,"语文",1]
[{"$nulls":3},{"$f":"CONCATENATE(\"高中\",L5,\"(\",M5,\")\")","v":"高中数学(1)"},{"$f":"CONCATENATE(\"高中\",L5,\"教学\")","v":"高中数学教学"},"数学与应用数学、信息与计算科学、数学基础科学、数学教育、教育学（数学方向）、基础数学、应用数学、计算数学、学科教学（数学）",{"$nulls":3},"成都经济技术开发区实验中学校",null,"数学",1]
[{"$nulls":3},"高中英语(2)","高中英语教学","英语、英语语言学、英语教育、教育学（英语方向）、学科教学（英语）",{"$nulls":3},"四川省成都市龙泉中学校、成都经济技术开发区实验中学校各1名",null,"英语",2]
[{"$nulls":3},"高中物理(1)","高中物理教学","物理学、应用物理、物理教育",{"$nulls":3},"四川省成都市龙泉驿区航天中学校",null,"物理",1]
[{"$nulls":3},"高中化学(2)","高中化学教学","无机化学、有机化学、物理化学、分析化学、化工原理、结构化学、化学课程与教学论",{"$nulls":3},"四川省成都市龙泉中学校、四川省成都市龙泉驿区航天中学校各1名",null,"化学",2]
[{"$nulls":3},"高中生物(2)","高中生物教学","生物科学、生物技术、生物信息学、生物教育、生态学",{"$nulls":3},"四川省成都市龙泉驿区航天中学校2名",null,"生物",2]
[{"$nulls":3},"高中政治(1)","高中政治教学","政治与行政学、思想政治教育、哲学",{"$nulls":3},"四川省成都市龙泉中学校",null,"政治",1]
[{"$nulls":3},"高中历史(1)","高中历史教学","历史学、 世界史 ",{"$nulls":3},"四川省成都市龙泉驿区航天中学校",null,"历史",1]
[{"$nulls":3},"高中地理(1)","高中地理教学","地理科学、地理信息学、自然地理与资源环境、人文地理与城乡规划、地理教育",{"$nulls":3},"四川省成都市龙泉中学校",null,"地理",1]
["龙泉驿区教育局所属普通初级中学校","专业技术",3,{"$f":"CONCATENATE(\"初中\",L13,\"(\",M13,\")\")","v":"初中英语(1)"},{"$f":"CONCATENATE(\"初中\",L13,\"教学\")","v":"初中英语教学"},"英语、英语语言学、英语教育、教育学（英语方向）、学科教学（英语）","2020年、2021年毕业的普通高等教育硕士研究生及以上学历学位的优秀大学毕业生或2020年、2021年毕业的教育部直属师范大学公费师范生，并取得相应学位。","研究生1985年1月1日及以后出生；本科生1990年1月1日及以后出生。","2021年7月31日前取得报考岗位相应的教师资格证。","成都市龙泉驿区同安中学校",null,"英语",1]
[{"$nulls":3},"初中物理(1)","初中物理教学","物理学、应用物理、物理教育",{"$nulls":3},"成都市龙泉驿区同安中学校",null,"物理",1]
[{"$nulls":3},"初中化学(1)","初中化学教学","无机化学、有机化学、物理化学、分析化学、化工原理、结构化学、化学课程与教学论",{"$nulls":3},"成都市龙泉驿区同安中学校",null,"化学",1]
["龙泉驿区教育局所属小学","专业技术",21,{"$f":"CONCATENATE(\"小学\",L16,\"(\",M16,\")\")","v":"小学语文(4)"},{"$f":"CONCATENATE(\"小学\",L16,\"教学\")","v":"小学语文教学"},"汉语言、汉语言文学、对外汉语、小学教育（语文方向）、汉语言及应用语言学、汉语言文字学、中国古典文献学、中国古代文学、中国现当代文学、文学与文学教育、学科教学（语文）","2020年、2021年毕业的普通高等教育硕士研究生及以上学历学位的优秀大学毕业生或2020年、2021年毕业的教育部直属师范大学公费师范生，并取得相应学位。","研究生1985年1月1日及以后出生；本科生1990年1月1日及以后出生。","2021年7月31日前取得报考岗位相应的教师资格证。","成都经济技术开发区实验小学校、成都市龙泉驿区大面小学校各2名",null,"语文",4]
[{"$nulls":3},{"$f":"CONCATENATE(\"小学\",L17,\"(\",M17,\")\")","v":"小学数学(5)"},{"$f":"CONCATENATE(\"小学\",L17,\"教学\")","v":"小学数学教学"},"数学与应用数学、信息与计算科学、数学基础科学、数学教育、小学教育（数学方向）、基础数学、应用数学、计算数学、学科教学（数学）",{"$nulls":3},"成都市龙泉驿区实验小学校、龙华小学校各1名，成都市龙泉驿区大面小学校3名",null,"数学",5]
[{"$nulls":3},"小学英语(5)","小学英语教学","英语、英语语言学、英语教育、小学教育（英语方向）、学科教学（英语）",{"$nulls":3},"成都市龙泉驿区实验小学校、第五小学校、大面小学校各1名，成都经济技术开发区实验小学校2名",null,"英语",5]
[{"$nulls":3},"小学音乐(2)","小学音乐教学","音乐学、舞蹈学、音乐教育、音乐、音乐与舞蹈学、音乐表演、小学教育（音乐方向）",{"$nulls":3},"成都市龙泉驿区实验小学校、龙华小学校各1名",null,"音乐",2]
[{"$nulls":3},{"$f":"CONCATENATE(\"小学\",L20,\"(\",M20,\")\")","v":"小学体育(3)"},{"$f":"CONCATENATE(\"小学\",L20,\"教学\")","v":"小学体育教学"},"体育教育、运动训练、社会体育、社会体育指导与管理、小学教育（体育方向）",{"$nulls":3},"成都市龙泉驿区第五小学校2名，成都市龙泉驿区龙华小学校1名",null,"体育",3]
[{"$nulls":3},{"$f":"CONCATENATE(\"小学\",L21,\"(\",M21,\")\")","v":"小学美术(2)"},{"$f":"CONCATENATE(\"小学\",L21,\"教学\")","v":"小学美术教学"},"油画、雕塑、国画、版画、壁画、插画、漆画、公共艺术、综合艺术绘画、美术学",{"$nulls":3},"成都市龙泉驿区第五小学校、成都市龙泉驿区龙华小学校各1名",null,"美术",2]
["成都市龙泉驿区特殊教育学校","专业技术",4,"特殊教育(4)","在特殊教育机构及相关机构从事特殊教育实践、理论研究和管理工作","教育学、心理学、解剖生理学、特殊教育导论、盲童心理与教育、聋童心理与教育、弱智儿童心理与教育、特殊儿童病理学、特殊儿童康复、特殊教育技术","2020年、2021年毕业的普通高等教育硕士研究生及以上学历学位的优秀大学毕业生或2020年、2021年毕业的教育部直属师范大学公费师范生，并取得相应学位。","研究生1985年1月1日及以后出生；本科生1990年1月1日及以后出生。","2021年7月31日前取得报考岗位相应的教师资格证。","成都市龙泉驿区特殊教育学校4名"]